Cogmind - Beta 13 @@@ ROGUE MODE // 2024.06.25 @ 18:43:27 Player: plaaosert Result: Destroyed by as-45258 with Assembled Blade Performance ------------- Evolutions (0) 0 Regions Visited (2) 400 Robots Destroyed (14) 70 Value Destroyed (304) 304 Prototype IDs (0) 0 Alien Tech Used (0) 0 Bonus (0) 0 TOTAL SCORE: 774 Bonus ------- None Cogmind --------- Core Integrity 0/250 Matter 300/300 Energy 125/125 System Corruption 0% Temperature Cool (0) Movement Walking (120) Location -10/Mines Parts ------- > --- POWER (1) -------- Light Ion Engine > --- PROPULSION (2) --- Aluminum Leg Aluminum Leg > --- UTILITY (2) ------ Machine Analyzer Weapon Shielding > --- WEAPON (2) ------- Light Assault Rifle > --- INVENTORY (5) ---- Light Ion Engine Heat Sink Large Matter Pod (150) EM Pulse Gun Welding Torch Peak State ------------ > --- POWER ------------ Ion Engine > --- PROPULSION ------- Aluminum Leg Aluminum Leg > --- UTILITY ---------- Machine Analyzer Sensor Array > --- WEAPON ----------- Medium Laser Assault Rifle > --- INVENTORY -------- Light Ion Engine EM Pulse Gun Welding Torch [Rating: 9] Favorites ----------- Power Light Ion Engine Engine Light Ion Engine Propulsion Aluminum Leg Leg Aluminum Leg Utility Machine Analyzer Device Sensor Array Processor Machine Analyzer Protection Weapon Shielding Weapon Medium Laser Energy Gun Medium Laser Ballistic Gun Assault Rifle Build | -11 -10 -10 ------- Run | Yrd Mat Min Slots Evolved . | . . . Power . | . . . Propulsion . | . . . Utility . | . . . Weapon . | . . . Parts Attached 14 | 3 8 3 Power 3 | 1 1 1 Engine 3 | 1 1 1 Core . | . . . Reactor . | . . . Propulsion 4 | 1 1 2 Treads . | . . . Leg 4 | 1 1 2 Wheel . | . . . Hover . | . . . Flight . | . . . Utility 4 | . 4 . Device 2 | . 2 . Storage . | . . . Processor 1 | . 1 . Hackware . | . . . Protection 1 | . 1 . Artifact . | . . . Weapon 3 | 1 2 . Energy Gun 1 | . 1 . Energy Cannon . | . . . Ballistic Gun 2 | 1 1 . Ballistic Cannon . | . . . Launcher . | . . . Special Weapon . | . . . Impact Weapon . | . . . Slashing Weapon . | . . . Piercing Weapon . | . . . Special Melee Weapon . | . . . Unidentified Prototypes . | . . . Parts Lost 7 | . 5 2 Power 2 | . 2 . Propulsion 2 | . 1 1 Utility 1 | . 1 . Weapon 2 | . 1 1 Highest Loss Streak 2 | . 2 1 To Critical Strikes . | . . . Average Slot Usage (%) 83 | . 82 87 Engine 9 | . 11 4 Leg 23 | . 23 25 Device 3 | . 4 . Processor 11 | . 10 14 Protection 8 | . 5 14 Energy Gun 12 | . 11 14 Ballistic Gun 13 | . 13 14 Naked Turns . | . . . Heaviest Build 10 | 7 10 7 Greatest Support 20 | 10 20 20 Greatest Overweight (x) . | . . . Average Overweight (x) . | . . . Largest Inventory Capacity 5 | 5 5 5 Average Capacity 5 | 5 5 5 Most Carried 5 | 5 5 5 Average Carried 4 | 3 3 4 Final Capacity 5 | 5 5 5 Final Carried 5 | 4 5 5 Class Distribution -------------------- 88% | Mutant 11% | Scavenger-Mutant Dominant Class ---------------- Mutant | -10/Materials Mutant | -10/Mines Resources | -11 -10 -10 ----------- Run | Yrd Mat Min Matter Collected 594 | 230 317 47 Remotely . | . . . Salvage Created 382 | . 272 110 Parts 25 | . 17 8 Haulers Intercepted . | . . . Recyclers Shooed . | . . . Parts Field Recycled . | . . . Retrieved Matter . | . . . Parts Self-Destructed . | . . . Prevented . | . . . Kills | -11 -10 -10 ------- Run | Yrd Mat Min Combat Hostiles Destroyed 10 | . 6 4 Guns 10 | . 6 4 Classes Destroyed 4 | . 4 . Worker 2 | . 2 . Watcher 2 | . 2 . Swarmer 4 | . 2 2 Grunt 6 | . 4 2 Best Kill Streak 4 | . 4 2 Combat Bots Only 2 | . 2 2 Max Kills in Single Turn 2 | . 1 2 Gunslinging 1 | . . 1 Exploded . | . . . Melee . | . . . Uniques/NPCs Destroyed . | . . . Combat | -11 -10 -10 -------- Run | Yrd Mat Min Hostile Shots Fired 102 | . 54 48 Missed 30 | . 12 18 Damage Taken 939 | . 535 404 Core 280 | . 118 162 Absorbed by Shields . | . . . Redirected to Shielding 41 | . 15 26 Core Remaining (%) 100 | 100 . . Volleys Fired 57 | . 38 19 Largest 2 | . 2 2 Hottest 70 | . 70 70 Shots Fired 99 | . 61 38 Gun 99 | . 61 38 Cannon . | . . . Launcher . | . . . Special . | . . . Kinetic 57 | . 38 19 Thermal 42 | . 23 19 Explosive . | . . . Electromagnetic . | . . . Robot Hit Streak 7 | . 7 4 Robot Miss Streak 8 | . 4 8 Penetration Max . | . . . Secondary Targets 4 | . 2 2 Max Gunslinging Chain 1 | . 1 1 Shots Hit Robots 51 | . 34 17 Core Hits 26 | . 16 10 Critical Kills . | . . . Critical Parts Destroyed 1 | . 1 . Critical Strikes 5 | . 5 . Burn 4 | . 4 . Destroy 1 | . 1 . Melee Attacks . | . . . Impact . | . . . Slashing . | . . . Piercing . | . . . Sneak Attacks . | . . . Combat Hostiles . | . . . Follow-up Attacks . | . . . Damage Inflicted 622 | . 436 186 Guns 621 | . 436 185 Cannons . | . . . Explosions . | . . . Melee . | . . . Ramming 1 | . . 1 Kinetic 284 | . 224 60 Thermal 337 | . 212 125 Explosive . | . . . Electromagnetic . | . . . Impact . | . . . Slashing . | . . . Piercing . | . . . Highest Corruption . | . . . Average Corruption . | . . . Corruption Purged . | . . . Corruption Blocked . | . . . Overload Shots . | . . . Overflow Damage . | . . . Projectiles . | . . . Explosions . | . . . Melee . | . . . Knockbacks . | . . . Impact . | . . . Kinetic . | . . . Secondary . | . . . Self-Inflicted Damage . | . . . Shots . | . . . Rammed . | . . . Targets Rammed 1 | . . 1 Kicked 1 | . . 1 Crushed . | . . . Highest Temperature 178 | . 178 64 Average Temperature 47 | . 62 24 Received Heat Transfer 267 | . 213 54 Siege Activations . | . . . Robots Corrupted . | . . . Combat Hostiles . | . . . Parts Fried . | . . . Impact Corruptions . | . . . Robots Melted . | . . . Combat Hostiles . | . . . Parts Melted 4 | . 2 2 Heat Transferred 1295 | . 925 370 Parts Sabotaged . | . . . Parts Stolen . | . . . Parts Stripped . | . . . Power Chain Reactions . | . . . Alert | -11 -10 -10 ------- Run | Yrd Mat Min Peak Influence 129 | . 129 91 Initial 1 | . . 1 Average 51 | . 52 65 Maximum Alert Level . | . . . Low Security (%) 100 | 100 100 100 Level 1 . | . . . Level 2 . | . . . Level 3 . | . . . Level 4 . | . . . Level 5 . | . . . High Security . | . . . Max Security . | . . . Squads Dispatched 1 | . 1 . Investigation . | . . . Extermination . | . . . Reinforcement 1 | . 1 . Assault . | . . . Garrison . | . . . Intercept . | . . . Searches Triggered . | . . . Construction Impeded . | . . . Haulers Reinforced . | . . . Active Scanning Responses . | . . . Cargo Convoy Interrupts . | . . . Stealth | -11 -10 -10 --------- Run | Yrd Mat Min Distress Signals 1 | . 1 . Communications Jammed . | . . . Distress Signals . | . . . Times Spotted 22 | . 10 12 Peak Tracking Total 17 | . 3 17 Tactical Retreats 1 | . . 1 Traps | -11 -10 -10 ------- Run | Yrd Mat Min Traps Triggered 2 | . 2 . Indirectly . | . . . Trap Hack Attempts . | . . . Triggered . | . . . Disarmed . | . . . Reprogrammed . | . . . Reused . | . . . Traps Extracted . | . . . Installed . | . . . Triggered . | . . . Machines | -11 -10 -10 ---------- Run | Yrd Mat Min Machines Disabled . | . . . Max in Single Turn . | . . . Machines Repaired . | . . . Machines Dismantled . | . . . Machines Sabotaged . | . . . Overloaded Fab Kills . | . . . Hacking | -11 -10 -10 --------- Run | Yrd Mat Min Machines Accessed 1 | . 1 . Terminals 1 | . 1 . Fabricators . | . . . Repair Stations . | . . . Recycling Units . | . . . Scanalyzers . | . . . Garrison Access . | . . . Total Hacks 2 | . 2 . Successful 1 | . 1 . Failed 1 | . 1 . Catastrophic 1 | . 1 . Database Lockouts . | . . . Manual . | . . . Terminals 2 | . 2 . Fabricators . | . . . Repair Stations . | . . . Recycling Units . | . . . Scanalyzers . | . . . Garrison Access . | . . . Terminal Hacks 1 | . 1 . Robot Analysis 1 | . 1 . Fabricator Hacks . | . . . Repair Station Hacks . | . . . Recycling Unit Hacks . | . . . Scanalyzer . | . . . Garrison Access Hacks . | . . . Unauthorized Hacks . | . . . Terminals . | . . . Fabricators . | . . . Repair Stations . | . . . Recycling Units . | . . . Scanalyzers . | . . . Garrison Access . | . . . Data Cores Recovered . | . . . Used . | . . . Hacking Detections 1 | . 1 . Full Trace Events . | . . . Feedback Events . | . . . Feedback Blocked . | . . . Robot Schematics Acquired . | . . . Robots Built . | . . . Authchips . | . . . Time . | . . . Total Robot Build Rating . | . . . Part Schematics Acquired . | . . . Parts Built . | . . . Authchips . | . . . Time . | . . . Total Part Build Rating . | . . . Parts Repaired . | . . . Time . | . . . Parts Recycled . | . . . Recycled Matter . | . . . Retrieved Matter . | . . . Retrieved Components . | . . . Parts Scanalyzed . | . . . Part Schematics Acquired . | . . . Parts Damaged . | . . . Bothacking | -11 -10 -10 ------------ Run | Yrd Mat Min Used RIF Installer . | . . . Robots Hacked . | . . . Non-combat . | . . . Combat . | . . . Robot Hacks Applied . | . . . Relay Couplers Released . | . . . Fabnet Peak Effective % . | . . . Robots Rewired . | . . . Allies Hacked . | . . . Hacks Repelled . | . . . Allies | -11 -10 -10 -------- Run | Yrd Mat Min Total Allies . | . . . Largest Group . | . . . Highest-Rated Group . | . . . Highest-Rated Ally . | . . . Total Orders . | . . . Ally Attacks . | . . . Total Damage . | . . . Kills . | . . . Allies Corrupted . | . . . Allies Melted . | . . . Intel | -11 -10 -10 ------- Run | Yrd Mat Min Robot Analysis Total 1 | . 1 . Derelict Logs Recovered . | . . . Drone Launches . | . . . Drone Recoveries . | . . . Exploration | -11 -10 -10 ------------- Run | Yrd Mat Min Turns Passed 837 | 68 514 255 Spaces Moved 556 | 61 332 163 Core 21 | 21 . . Treads . | . . . Legs 535 | 40 332 163 Wheels . | . . . Hover . | . . . Flight . | . . . Fastest Speed 50 | 50 120 120 Average Speed 117 | 95 120 120 Slowest Speed 120 | 120 120 120 Overloaded Moves . | . . . Propulsion Burnouts . | . . . Robots Hopped . | . . . Cave-ins Triggered . | . . . Exploration Rate (%) 37 | 4 54 53 Regions Visited 2 Branch Regions 1 Pre-discovered Areas . | . . . Known Exits Taken . | . . . Unknown Exits Taken 2 | 1 1 . Scrap Searched . | . . . Spaces Dug . | . . . Terrain Destroyed . | . . . Melee . | . . . Projectile . | . . . AOE . | . . . Terrain Rammed . | . . . Walls Destroyed . | . . . Machines Disabled . | . . . Actions | -11 -10 -10 --------- Run | Yrd Mat Min Total 647 | 70 388 189 Wait . | . . . Move 554 | 60 331 163 Hop . | . . . Pick Up 19 | 7 9 3 Fast Attach . | . . . Attach 14 | 3 8 3 Detach 1 | . 1 . Swap . | . . . Drop 1 | . 1 . Fire 57 | . 38 19 Melee . | . . . Ram . | . . . Kick 1 | . . 1 Crush . | . . . Escape Stasis . | . . . Rewire . | . . . Trap . | . . . Miscellaneous . | . . . Route ------- -11/Scrapyard -10/Materials -10/Mines (discovered 1 exit: [*Mat]) History --------- Turn | Location | Event 16 | -11/Scrapyard | Discovered new exit (range 16) 69 | -11/Scrapyard | Entered Materials 309 | -10/Materials | Build established: Mutant 566 | -10/Materials | Discovered new exit (range 13) 583 | -10/Materials | Entered Mines 586 | -10/Mines | Core integrity fell below 50% 643 | -10/Mines | Discovered new exit (range 4) 739 | -10/Mines | Core integrity fell below 20% 795 | -10/Mines | Assembled infested the area 838 | -10/Mines | Destroyed by as-45258 with Assembled Blade Last Messages --------------- 00705_ K-01 Serf collects debris. 00708_ Aluminum Leg destroyed. 00710_ S-10 Pest destroyed. 00710_ Switching to secondary target: S-10 Pest. 00712_ K-01 Serf collects debris. 00720_ S-10 Pest destroyed. 00722_ K-01 Serf collects debris. 00740_ Lgt. Assault Rifle melted. 00740_ S-10 Pest destroyed. 00741_ R-06 Scavenger collects Flight Unit. 00744_ R-06 Scavenger collects Lgt. Ion Engine. 00758_ Acquired Lgt. Ion Engine. 00760_ Acquired 18 matter. 00763_ Acquired 13 matter. 00765_ Acquired Lgt. Ion Engine. 00776_ K-01 Serf collects debris. 00795_ ALERT: Infestation in the mines, dispatching Demolisher response squad. 00833_ Med. Laser destroyed. 00838_ Kicked U-05 Engineer. Map ----- +----------------------------------------------------+ | ????????????????????????## ???????????# ###### | | ????????????????????????# ?????????### | | ????????????????????????# ?????????# ##### | | ???????????????????????## ?????????# ####???## | | ??????????????????????## #????????# #???????# | | ?????????????????????## ###?????# #???????? | | ????????????????????## ####### #???????? | | ???????????????????## #???????? | | ??????????????????## ########????##?? | | ??????????????????# ##???????????# # | | ??????????????????# ##????????????# | | ??????????????????# ##????????????# | | ??????????????????# ##??????????## | | ??????????????????## ### #?????###?## | | ????????????????????????## #????# ?# | | ?????????????????????###?### ##???? # | | ????????????????????## #??## ##????? ?????? | | ????????????????????# #### ##?????# ???????? | | ????????????????????# ## ##???### ????????? | | ????????????????????# a##???## ?????????? | | ????????????????????## #????? ?????????? | | ?????????????????????# ##????? ??????????? | | ??????????????######### #??????# #??????????? | | ??????????????# =%[% #### ##??????# #??????????? | | ??????????????# ![ #??#a##???????# #??????????? | | ??????????????# #??#@########## #??????????? | | ??????????????# """ #??# u #??????????? | | ??????????????# """ #??#### ####### #??????????? | | ?????????????## """ ####### #?????# #??????????? | | ?????????????# #????## ##?????##### | | ?????????????# #########????# < #????## # | | ?????????????# ######???????????## ###### | | ?????????????# #??????????????### | | ?????????????# #?????????????## ###### | | ?????????????# ##????????????## ##????# # | | ?????????????##?????????????## #?????## # | | ????????????????????????????# ##?????# # | | ????????????????????????????# ##????# | | ????????????????????????????## ###### | | ?????????????????????????????## | | ??????????????????????????????## | | ???????????????????????????????################### | | ?????????????????????????????????????????????????? | | ?????????????????????????????????????????????????? | | | | | | | | | | | | | +----------------------------------------------------+ Best States ------------- Heat Dissipation 25 Energy Generation 10 Energy Capacity 250 Matter Stores 300 Matter Capacity 300 Sight Range 16 Robot Scan Range 14 Terrain Scan Density 10 Weapon Shielding 33 Evasion (%) 55 Item Schematics ----------------- None Robot Schematics ------------------ None Fabricated ------------ Nothing Alien Tech Used ----------------- None Achievements -------------- None Challenges ------------ None Game ------ Seed StasisCobblerRecalibrator Manual? 0 Play Time 00:10:17 Cumulative 4.8 hours Start 2024.06.25 @ 18:33:40 End 2024.06.25 @ 18:43:27 Sessions 1 Manual Loads 0 Difficulty Rogue Special Mode None Game No. 9 Rogue 9 Adventurer 0 Explorer 0 Win Type - Total 0 Types 0/0/0/0/0/0/0/0/0 Lore% 5 Gallery% 12 Achievement% 13 Wizard Run 0 Options --------- Layout 1 ASCII 0 Keyboard 1 Movement Numpad Keybinds 0 Fullscreen 2 Font 24/X11 Map View 50x35 Zoom Use 0% Tactical HUD 1 Map Filters NONE Filters NONE Steam 1 RUN: 42fee432-66fa-48e2-a2c8-00f0ea6d7318